Cogmind - Beta 11 @@@ ROGUE MODE // 2022.04.02 @ 00:48:49 Player: Dhoby_Ghaut Result: Escaped! Performance ------------- Evolutions (9) 4500 Regions Visited (13) 2600 Robots Destroyed (109) 545 Value Destroyed (2754) 2754 Prototype IDs (13) 260 Alien Tech Used (0) 0 Bonus (3866) 3866 TOTAL SCORE: 14525 Bonus ------- High Alert Combat Kills 201 Follower Combat Kills 165 Entered DSFs 500 Win 3000 Cogmind --------- Core Integrity 1482/1600 Matter 140/300 Energy 226/230 System Corruption 0% Temperature Cool (4) Movement Flying (98) Ox1 Location To Epsilon Eridani Parts ------- > --- POWER (2) -------- Light Particle Reactor Micro Antimatter Reactor > --- PROPULSION (6) --- Impulse Thruster Advanced Surge Thruster Field Propulsion Array Impulse Thruster Array > --- UTILITY (15) ----- Small Storage Unit Machine Analyzer Enhanced Optical Array Advanced Sensor Array Advanced Signal Interpreter Long-range Terrain Scanner Improved Terrain Scan Processor Hacking Suite Hacking Suite Hacking Suite Advanced Hacking Suite System Shield Drone Bay (2/2) > --- WEAPON (2) ------- Enhanced Quantum Rifle Chainsword > --- INVENTORY (8) ---- Quantum Reactor Light Quantum Reactor Q-thruster Enhanced Nova Cannon Peak State ------------ > --- POWER ------------ Light Particle Reactor Micro Antimatter Reactor > --- PROPULSION ------- Impulse Thruster Advanced Surge Thruster Field Propulsion Array Impulse Thruster Array > --- UTILITY ---------- Small Storage Unit Machine Analyzer Enhanced Optical Array Advanced Sensor Array Advanced Signal Interpreter Long-range Terrain Scanner Improved Terrain Scan Processor Transmission Jammer Hacking Suite Hacking Suite Hacking Suite Advanced Hacking Suite System Shield > --- WEAPON ----------- Enhanced Quantum Rifle Chainsword > --- INVENTORY -------- Quantum Reactor Light Quantum Reactor Impulse Thruster Advanced Surge Thruster Q-thruster Drone Bay Enhanced Nova Cannon [Rating: 129] Favorites ----------- Power Ion Engine Engine Ion Engine Power Core Light Nuclear Core Reactor Light Quantum Reactor Propulsion Light Treads Treads Light Treads Wheel Compact Wheel Flight Unit Improved VTOL Module Utility Hacking Suite Device Improved Sensor Array Storage High-capacity Storage Unit Processor Advanced Visual Processing Unit Hackware Hacking Suite Protection Light Armor Plating Weapon Improved EM Shotgun Energy Gun Improved EM Shotgun Energy Cannon Enhanced Nova Cannon Ballistic Gun Light Assault Rifle Ballistic Cannon Improved Light Cannon Launcher Missile Launcher Impact Weapon Heavy Mace Slashing Weapon Chainsword Build | -11 -10 -10 -9 -8 -8 -7 -6 -5 -5 -4 -3 -2 -1 ------- Run | Scr Mat Min Mat Mat Sto Fac Fac Fac DSF Fac Res Res Acc Slots Evolved 18 | . . . 2 2 . 2 2 2 . 2 2 2 2 Power 1 | . . . . . . . . . . . 1 . . Propulsion 4 | . . . 1 1 . . . . . . 1 1 . Utility 13 | . . . 1 1 . 2 2 2 . 2 . 1 2 Weapon . | . . . . . . . . . . . . . . Parts Attached 182 | 7 7 2 16 10 40 24 11 1 2 26 22 5 9 Power 22 | 1 . . . 2 3 4 4 . . 1 4 3 . Engine 13 | 1 . . . 2 3 3 3 . . . 1 . . Core 2 | . . . . . . 1 1 . . . . . . Reactor 7 | . . . . . . . . . . 1 3 3 . Propulsion 37 | 2 1 1 5 . 12 6 . . . 4 3 1 2 Treads 7 | . 1 . 2 . 4 . . . . . . . . Leg . | . . . . . . . . . . . . . . Wheel 12 | 2 . 1 3 . 6 . . . . . . . . Hover . | . . . . . . . . . . . . . . Flight 18 | . . . . . 2 6 . . . 4 3 1 2 Utility 68 | 2 5 1 3 4 6 8 4 1 2 16 11 1 4 Device 26 | 1 . . . . 1 3 3 1 . 7 6 1 3 Storage 5 | 1 3 . . . . 1 . . . . . . . Processor 15 | . 1 . 2 1 1 2 1 . 1 4 2 . . Hackware 9 | . . . . 1 . 2 . . . 4 1 . 1 Protection 13 | . 1 1 1 2 4 . . . 1 1 2 . . Artifact . | . . . . . . . . . . . . . . Weapon 55 | 2 1 . 8 4 19 6 3 . . 5 4 . 3 Energy Gun 14 | . . . 4 3 6 . . . . . . . 1 Energy Cannon 2 | . . . . . . . . . . . 1 . 1 Ballistic Gun 15 | 2 1 . 1 . 7 3 1 . . . . . . Ballistic Cannon 2 | . . . 2 . . . . . . . . . . Launcher 5 | . . . 1 . 2 . . . . 1 1 . . Special Weapon . | . . . . . . . . . . . . . . Impact Weapon 7 | . . . . . 4 3 . . . . . . . Slashing Weapon 10 | . . . . 1 . . 2 . . 4 2 . 1 Piercing Weapon . | . . . . . . . . . . . . . . Special Melee Weapon . | . . . . . . . . . . . . . . Unidentified Prototypes 8 | . . . 1 . 5 1 1 . . . . . . Corrupted Parts 4 | . . . . 1 2 1 . . . . . . . System Corruption 16 | . . . . 1 13 2 . . . . . . . Parts Lost 30 | . 1 . . 1 11 3 . . 1 3 4 1 5 Power 5 | . . . . . 3 1 . . . . 1 . . Propulsion 8 | . 1 . . . 3 2 . . . . . . 2 Utility 10 | . . . . 1 1 . . . 1 2 2 1 2 Weapon 7 | . . . . . 4 . . . . 1 1 . 1 Highest Loss Streak 6 | . 1 . . 1 6 1 . . 1 2 2 1 5 To Critical Strikes . | . . . . . . . . . . . . . . Average Slot Usage (%) 95 | . 99 100 97 88 96 97 98 94 100 95 86 89 81 Engine 7 | . 14 14 11 9 8 5 . 5 5 . . . . Reactor 1 | . . . . . . . . . . 4 4 8 8 Treads 7 | . 3 14 11 9 17 3 . . . . . . . Wheel 11 | . 24 14 21 18 17 3 . . . . . . . Flight 7 | . . . . . . 21 26 23 23 21 15 17 16 Device 4 | . 4 . . . 1 7 11 17 13 10 9 8 8 Storage 8 | . 14 14 11 9 9 5 6 5 5 5 4 4 4 Processor 10 | . 6 . 9 9 9 12 13 11 17 19 18 17 16 Hackware 10 | . . . . 8 9 19 20 17 17 22 21 17 18 Protection 5 | . 2 14 11 7 6 . . . 3 3 1 7 2 Energy Gun 5 | . . . 12 17 12 . . . . . . . . Ballistic Gun 8 | . 28 28 5 . 2 10 4 . . . . . . Impact Weapon 1 | . . . . . 3 3 3 . . . . . . Slashing Weapon 2 | . . . . . . . 5 11 11 6 9 8 6 Naked Turns . | . . . . . . . . . . . . . . Heaviest Build 60 | 14 49 51 56 54 60 56 22 22 24 30 32 41 48 Greatest Support 45 | 26 26 16 32 32 40 20 20 29 29 31 39 42 45 Greatest Overweight (x) 5 | . 3 5 5 1 5 4 1 . . 1 . . 1 Average Overweight (x) . | . 1 3 1 1 1 . . . . . . . . Largest Inventory Capacity 20 | 8 20 20 20 20 20 20 8 8 8 8 8 8 8 Average Capacity 15 | 7 16 20 20 20 20 12 8 8 8 8 8 8 8 Most Carried 20 | 6 17 20 20 20 20 20 8 7 8 8 8 8 8 Average Carried 14 | 4 11 18 19 19 19 11 7 7 7 7 7 7 7 Final Capacity 20 | 8 20 20 20 20 20 8 8 8 8 8 8 8 8 Final Carried 20 | 6 17 20 20 20 20 8 8 7 8 8 8 8 4 Class Distribution -------------------- 45% | Mutant 17% | Scavenger-Mutant 15% | Hacker-Scout 9% | Hacker-Ninja 7% | Hacker-Sprinter 3% | Hacker-Mutant Dominant Class ---------------- Mutant | -10/Materials Mutant | -10/Mines Mutant | -9/Materials Mutant | -8/Materials Scavenger-Mutant | -8/Storage Hacker-Sprinter | -7/Factory Hacker-Scout | -6/Factory Hacker-Scout | -5/Factory Hacker-Scout | -5/DSF Hacker-Scout | -4/Factory Hacker-Scout | -3/Research Hacker-Ninja | -2/Research Hacker-Ninja | -1/Access Resources | -11 -10 -10 -9 -8 -8 -7 -6 -5 -5 -4 -3 -2 -1 ----------- Run | Scr Mat Min Mat Mat Sto Fac Fac Fac DSF Fac Res Res Acc Matter Collected 2613 | 253 229 56 374 95 538 413 93 . . 384 145 . 33 Remotely . | . . . . . . . . . . . . . . Salvage Created 4032 | 10 215 34 531 406 1398 310 369 . . 359 317 . 83 Parts 251 | 4 15 4 46 12 92 21 6 . . 22 21 . 8 Haulers Intercepted 11 | . 1 . 4 . 3 . 3 . . . . . . Recyclers Shooed 2 | . 1 . . . . . . . . . 1 . . Parts Field Recycled . | . . . . . . . . . . . . . . Retrieved Matter . | . . . . . . . . . . . . . . Parts Self-Destructed . | . . . . . . . . . . . . . . Prevented . | . . . . . . . . . . . . . . Kills | -11 -10 -10 -9 -8 -8 -7 -6 -5 -5 -4 -3 -2 -1 ------- Run | Scr Mat Min Mat Mat Sto Fac Fac Fac DSF Fac Res Res Acc Combat Hostiles Destroyed 56 | . 5 . 8 2 25 6 . . . 4 4 . 2 Melee 4 | . . . . . . 2 . . . 1 1 . . Guns 29 | . 5 . 4 1 15 4 . . . . . . . AOE 22 | . . . 4 1 9 . . . . 3 3 . 2 Classes Destroyed 14 | 1 5 . 4 1 1 1 . . . 1 . . . Worker 11 | . 1 1 . . 5 1 . . . . 3 . . Builder 3 | . . . 1 . . . 1 . . 1 . . . Tunneler 5 | 1 . 1 . . . . 2 . . . 1 . . Hauler 11 | . 1 . 4 . 3 . 3 . . . . . . Recycler 6 | . . . . 3 . 1 . . . 1 1 . . Mechanic 2 | . . . . . . . . . . 2 . . . Operator 4 | . . . 1 . 2 . . . . . 1 . . Watcher 11 | . 1 . 3 2 1 1 . . . 2 . . 1 Swarmer 23 | . 3 . 4 . 4 2 . . . 4 4 . 2 Grunt 18 | . 2 . 1 . 12 3 . . . . . . . Brawler 1 | . . . . . 1 . . . . . . . . Duelist 1 | . . . 1 . . . . . . . . . . Sentry 12 | . . . 2 2 8 . . . . . . . . Programmer 1 | . . . . . . 1 . . . . . . . Best Kill Streak 9 | 1 3 1 4 3 9 3 2 . . 4 4 . 3 Combat Bots Only 6 | . 3 . 4 2 6 3 . . . 4 3 . 2 Max Kills in Single Turn 4 | 1 1 1 4 2 4 1 1 . . 2 4 . 2 Gunslinging . | . . . . . . . . . . . . . . Exploded 4 | . . . 4 1 4 . . . . 2 3 . 2 Melee 1 | . . . . . . 1 . . . 1 1 . . Uniques/NPCs Destroyed . | . . . . . . . . . . . . . . Combat | -11 -10 -10 -9 -8 -8 -7 -6 -5 -5 -4 -3 -2 -1 -------- Run | Scr Mat Min Mat Mat Sto Fac Fac Fac DSF Fac Res Res Acc Damage Taken 4199 | . 167 . 411 79 1332 336 15 . 217 306 681 106 549 Core 680 | . 7 . 24 . 183 45 15 . 77 12 173 26 118 Absorbed by Shields 27 | . . . . . . . . . 27 . . . . Redirected to Shielding 219 | . . . . . . . . . . 23 96 51 49 Regen/Repaired (Parts) 125 | . . . 64 . . 16 20 . . 25 . . . Core Remaining (%) 92 | 100 . 97 94 . 66 93 98 . 92 98 86 98 92 Volleys Fired 171 | 3 21 6 35 13 60 26 . . . 2 2 . 3 Largest 2 | 2 2 2 2 2 2 2 . . . 1 1 . 1 Hottest 120 | 40 40 40 90 90 105 50 . . . 36 120 . 120 Shots Fired 322 | 6 42 12 70 26 109 50 . . . 2 2 . 3 Gun 306 | 6 42 12 63 26 105 50 . . . . . . 2 Cannon 8 | . . . 6 . . . . . . . 1 . 1 Launcher 8 | . . . 1 . 4 . . . . 2 1 . . Special . | . . . . . . . . . . . . . . Kinetic 165 | 6 42 12 35 . 20 50 . . . . . . . Thermal 4 | . . . . . . . . . . . 1 . 3 Explosive 8 | . . . 1 . 4 . . . . 2 1 . . Electromagnetic 145 | . . . 34 26 85 . . . . . . . . Robot Hit Streak 17 | 2 13 9 16 13 14 17 . . . 3 . . . Robot Miss Streak 6 | 2 2 3 4 6 4 2 . . . 1 2 . . Penetration Max . | . . . . . . . . . . . . . . Secondary Targets 1 | . . . 1 . . . . . . . . . . Max Gunslinging Chain 1 | . . . 1 . . . . . . . . . . Shots Hit Robots 271 | 3 29 6 46 20 83 43 12 . . 14 9 2 4 Core Hits 168 | 3 15 2 32 12 67 11 3 . . 12 9 . 2 Critical Kills . | . . . . . . . . . . . . . . Critical Parts Destroyed 3 | . . . . . . 2 1 . . . . . . Critical Strikes 6 | . . . . . 1 2 2 . . 1 . . . Corrupt 1 | . . . . . 1 . . . . . . . . Smash 3 | . . . . . . 2 1 . . . . . . Sever 2 | . . . . . . . 1 . . 1 . . . Melee Attacks 129 | . . . . 1 19 14 16 . 1 29 36 3 10 Impact 42 | . . . . . 19 14 9 . . . . . . Slashing 87 | . . . . 1 . . 7 . 1 29 36 3 10 Piercing . | . . . . . . . . . . . . . . Sneak Attacks 21 | . . . . . 2 1 7 . . 5 6 . . Combat Hostiles . | . . . . . . . . . . . . . . Follow-up Attacks 5 | . . . . . . . 2 . . 1 . 1 1 Damage Inflicted 8899 | 39 290 53 933 526 2565 1106 950 . . 976 913 74 474 Guns 3535 | 39 290 53 628 365 1518 642 . . . . . . . Cannons 86 | . . . 86 . . . . . . . . . . Explosions 2005 | . . . 219 161 819 . . . . 205 277 . 324 Melee 3177 | . . . . . 228 464 950 . . 675 636 74 150 Ramming 96 | . . . . . . . . . . 96 . . . Kinetic 1514 | 39 290 53 213 . 277 642 . . . . . . . Thermal 792 | . . . 74 161 233 . . . . . . . 324 Explosive 1213 | . . . 145 . 586 . . . . 205 277 . . Electromagnetic 2107 | . . . 501 365 1241 . . . . . . . . Impact 1346 | . . . . . 228 464 654 . . . . . . Slashing 1831 | . . . . . . . 296 . . 675 636 74 150 Piercing . | . . . . . . . . . . . . . . Highest Corruption 14 | . . . . 1 14 2 . . 3 4 1 . . Average Corruption 3 | . . . . 1 5 2 . . 3 4 1 . . Corruption Purged . | . . . . . . . . . . . . . . Corruption Blocked . | . . . . . . . . . . . . . . Effects 45 | . . . . 3 29 2 . . . 10 1 . . Message Errors 11 | . . . . 3 7 . . . . 1 . . . Matter Fused 16 | . . . . . 12 . . . . 4 . . . Heat Flow Errors 4 | . . . . . 3 . . . . 1 . . . Energy Discharges 4 | . . . . . 4 . . . . . . . . Parts Rejected 1 | . . . . . 1 . . . . . . . . Data Loss (minor) 4 | . . . . . . 1 . . . 3 . . . Data Loss (major) 3 | . . . . . 1 . . . . 1 1 . . Alerts 2 | . . . . . 1 1 . . . . . . . Overload Shots . | . . . . . . . . . . . . . . Overflow Damage 1275 | . . . 9 8 180 228 337 . . 95 282 . 136 Projectiles . | . . . . . . . . . . . . . . Explosions 131 | . . . 9 8 7 . . . . . 6 . 101 Melee 1144 | . . . . . 173 228 337 . . 95 276 . 35 Knockbacks 1 | . . . . . . . 1 . . . . . . Impact 1 | . . . . . . . 1 . . . . . . Kinetic . | . . . . . . . . . . . . . . Secondary . | . . . . . . . . . . . . . . Self-Inflicted Damage 301 | . . . . . 173 . . . . 128 . . . Shots 6 | . . . . . 5 . . . . 1 . . . Rammed . | . . . . . . . . . . . . . . Targets Rammed . | . . . . . . . . . . . . . . Kicked . | . . . . . . . . . . . . . . Crushed . | . . . . . . . . . . . . . . Highest Temperature 276 | . 9 6 222 54 276 20 . . . 220 62 4 72 Average Temperature 57 | . 6 4 56 19 79 7 . . . 103 34 4 25 Received Heat Transfer 942 | . 57 . 111 45 585 54 . . . . 54 9 27 Effects 1 | . . . . . 1 . . . . . . . . Interference 1 | . . . . . 1 . . . . . . . . Siege Activations . | . . . . . . . . . . . . . . Robots Corrupted 2 | . . . . 1 1 . . . . . . . . Combat Hostiles 1 | . . . . . 1 . . . . . . . . Parts Fried 27 | . . . 6 6 8 3 4 . . . . . . Impact Corruptions 15 | . . . . . 2 5 8 . . . . . . Robots Melted . | . . . . . . . . . . . . . . Combat Hostiles . | . . . . . . . . . . . . . . Parts Melted 1 | . . . . 1 . . . . . . . . . Heat Transferred 550 | . . . 50 200 200 . . . . . . . 100 Parts Sabotaged . | . . . . . . . . . . . . . . Parts Stolen . | . . . . . . . . . . . . . . Parts Stripped . | . . . . . . . . . . . . . . Power Chain Reactions 7 | . . . 2 2 3 . . . . . . . . Missiles Intercepted . | . . . . . . . . . . . . . . Alert | -11 -10 -10 -9 -8 -8 -7 -6 -5 -5 -4 -3 -2 -1 ------- Run | Scr Mat Min Mat Mat Sto Fac Fac Fac DSF Fac Res Res Acc Peak Influence 782 | 5 198 5 257 423 782 646 228 111 96 342 395 290 329 Initial 351 | . 3 . 1 44 178 351 64 111 79 44 130 222 173 Average 191 | . 39 1 132 138 419 379 140 111 84 135 201 252 159 Maximum Alert Level 3 | . . . 1 2 3 2 1 . . 1 1 1 1 Low Security (%) 61 | 100 100 100 78 89 7 18 70 100 100 79 55 . 70 Level 1 22 | . . . 21 4 38 24 29 . . 20 44 100 29 Level 2 13 | . . . . 5 45 56 . . . . . . . Level 3 1 | . . . . . 7 . . . . . . . . Level 4 . | . . . . . . . . . . . . . . Level 5 . | . . . . . . . . . . . . . . High Security . | . . . . . . . . . . . . . . Max Security . | . . . . . . . . . . . . . . Squads Dispatched 23 | . 1 . 1 . 5 7 2 . 1 4 2 . . Investigation 7 | . 1 . . . . 1 1 . . 3 1 . . Extermination 5 | . . . . . . 2 1 . . 1 1 . . Reinforcement 6 | . . . 1 . 3 1 . . 1 . . . . Assault 2 | . . . . . 2 . . . . . . . . Garrison 3 | . . . . . . 3 . . . . . . . Intercept . | . . . . . . . . . . . . . . Searches Triggered . | . . . . . . . . . . . . . . Construction Impeded . | . . . . . . . . . . . . . . Haulers Reinforced . | . . . . . . . . . . . . . . Active Scanning Responses . | . . . . . . . . . . . . . . Cargo Convoy Interrupts . | . . . . . . . . . . . . . . Stealth | -11 -10 -10 -9 -8 -8 -7 -6 -5 -5 -4 -3 -2 -1 --------- Run | Scr Mat Min Mat Mat Sto Fac Fac Fac DSF Fac Res Res Acc Distress Signals 9 | . 1 . 3 . 2 . 1 . . 2 . . . Communications Jammed 38 | . . . . . . . . . . 3 23 5 7 Distress Signals 38 | . . . . . . . . . . 3 23 5 7 Times Spotted 190 | . 11 . 23 5 42 20 6 . 6 20 36 3 18 Peak Tracking Total 14 | . 4 . 5 2 9 7 7 . 5 8 14 3 11 Tactical Retreats 25 | . 2 . 1 . 3 4 2 . 1 3 6 . 3 Traps | -11 -10 -10 -9 -8 -8 -7 -6 -5 -5 -4 -3 -2 -1 ------- Run | Scr Mat Min Mat Mat Sto Fac Fac Fac DSF Fac Res Res Acc Traps Triggered 8 | . 1 . . . 2 . 2 . 1 . 1 . 1 Indirectly . | . . . . . . . . . . . . . . Trap Hack Attempts . | . . . . . . . . . . . . . . Triggered . | . . . . . . . . . . . . . . Disarmed . | . . . . . . . . . . . . . . Reprogrammed 6 | . 6 . . . . . . . . . . . . Reused . | . . . . . . . . . . . . . . Traps Extracted . | . . . . . . . . . . . . . . Installed . | . . . . . . . . . . . . . . Triggered . | . . . . . . . . . . . . . . Machines | -11 -10 -10 -9 -8 -8 -7 -6 -5 -5 -4 -3 -2 -1 ---------- Run | Scr Mat Min Mat Mat Sto Fac Fac Fac DSF Fac Res Res Acc Machines Disabled 15 | . . . 1 . 6 . . . . 7 . . 1 Max in Single Turn 6 | . . . 1 . 1 . . . . 6 . . 1 Garrison Access 1 | . . . . . 1 . . . . . . . . Energy Cycler 1 | . . . . . . . . . . . . . 1 Machines Sabotaged . | . . . . . . . . . . . . . . Garrisons Compromised . | . . . . . . . . . . . . . . Overloaded Fab Kills . | . . . . . . . . . . . . . . Hacking | -11 -10 -10 -9 -8 -8 -7 -6 -5 -5 -4 -3 -2 -1 --------- Run | Scr Mat Min Mat Mat Sto Fac Fac Fac DSF Fac Res Res Acc Machines Accessed 50 | . 3 . 4 3 8 7 2 1 . 13 7 . 2 Terminals 34 | . 3 . 3 3 7 4 . 1 . 6 5 . 2 Fabricators 6 | . . . . . . . 1 . . 4 1 . . Repair Stations 5 | . . . 1 . . 1 1 . . 2 . . . Recycling Units . | . . . . . . . . . . . . . . Scanalyzers 1 | . . . . . . 1 . . . . . . . Garrison Access 4 | . . . . . 1 1 . . . 1 1 . . Total Hacks 134 | . 10 . 18 10 12 17 4 1 . 41 16 . 5 Successful 102 | . 8 . 14 7 9 15 4 1 . 33 8 . 3 Failed 31 | . 2 . 4 2 3 2 . . . 8 8 . 2 Catastrophic 1 | . . . . . . . . . . . 1 . . Database Lockouts 1 | . . . . 1 . . . . . . . . . Manual 53 | . 6 . 13 6 3 5 . . . 15 5 . . Terminals 101 | . 10 . 16 10 11 11 . 1 . 24 13 . 5 Fabricators 15 | . . . . . . . 2 . . 11 2 . . Repair Stations 11 | . . . 2 . . 2 2 . . 5 . . . Recycling Units . | . . . . . . . . . . . . . . Scanalyzers 2 | . . . . . . 2 . . . . . . . Garrison Access 5 | . . . . . 1 2 . . . 1 1 . . Terminal Hacks 54 | . 4 . 7 4 7 9 . 1 . 14 5 . 3 Part Schematic 5 | . . . 1 1 . 1 . . . 2 . . . Robot Analysis 3 | . 1 . 2 . . . . . . . . . . Prototype ID Bank 2 | . . . 1 . . . . . . 1 . . . Open Door 4 | . . . . . 4 . . . . . . . . Open DSF 1 | . . . . . . . . 1 . . . . . Level Access Points 4 | . . . . . 1 . . . . 1 1 . 1 Terminal Index 1 | . . . . . . . . . . 1 . . . Fabricator Index 1 | . . . . . . 1 . . . . . . . Alert Level 9 | . . . 1 . . 3 . . . 3 1 . 1 Unreport Threat 6 | . . . . . . 3 . . . 1 1 . 1 Locate Traps 4 | . 1 . 1 1 . . . . . 1 . . . Reprogram Traps 1 | . 1 . . . . . . . . . . . . Dispatch Records 2 | . . . . . . . . . . 1 1 . . Recall Extermination 1 | . . . . . . . . . . 1 . . . Registered Components 1 | . . . . 1 . . . . . . . . . Zone Layout 9 | . 1 . 1 1 2 1 . . . 2 1 . . Fabricator Hacks 11 | . . . . . . . 2 . . 8 1 . . Network Status 1 | . . . . . . . . . . 1 . . . Load Schematic 4 | . . . . . . . 1 . . 3 . . . Build 6 | . . . . . . . 1 . . 4 1 . . Repair Station Hacks 10 | . . . 2 . . 2 2 . . 4 . . . Scan Component 5 | . . . 1 . . 1 1 . . 2 . . . Repair 5 | . . . 1 . . 1 1 . . 2 . . . Recycling Unit Hacks . | . . . . . . . . . . . . . . Scanalyzer 2 | . . . . . . 2 . . . . . . . Insert Component 1 | . . . . . . 1 . . . . . . . Analyze 1 | . . . . . . 1 . . . . . . . Garrison Access Hacks 1 | . . . . . 1 . . . . . . . . Seal Access 1 | . . . . . 1 . . . . . . . . Unauthorized Hacks 24 | . 4 . 5 3 1 2 . . . 7 2 . . Terminals 19 | . 4 . 5 3 1 1 . . . 4 1 . . Track 3 | . . . 1 1 1 . . . . . . . . Assimilate 1 | . . . . . . . . . . 1 . . . Botnet 13 | . 3 . 3 2 . 1 . . . 3 1 . . Operators 2 | . 1 . 1 . . . . . . . . . . Fabricators 2 | . . . . . . . . . . 2 . . . Prioritize 2 | . . . . . . . . . . 2 . . . Repair Stations . | . . . . . . . . . . . . . . Recycling Units . | . . . . . . . . . . . . . . Scanalyzers . | . . . . . . . . . . . . . . Garrison Access 3 | . . . . . . 1 . . . 1 1 . . Decoy 1 | . . . . . . . . . . . 1 . . Reprogram 2 | . . . . . . 1 . . . 1 . . . Data Cores Recovered 1 | . . . . . . . . . . . 1 . . Used . | . . . . . . . . . . . . . . Hacking Detections 40 | . 3 . 4 3 3 7 2 . . 10 6 . 2 Full Trace Events 4 | . . . . . . . 1 . . 2 1 . . Feedback Events . | . . . . . . . . . . . . . . Feedback Blocked . | . . . . . . . . . . . . . . Robot Schematics Acquired . | . . . . . . . . . . . . . . Robots Built . | . . . . . . . . . . . . . . Authchips . | . . . . . . . . . . . . . . Time . | . . . . . . . . . . . . . . Total Robot Build Rating . | . . . . . . . . . . . . . . Part Schematics Acquired 6 | . . . 1 1 . 2 . . . 2 . . . Parts Built 9 | . . . . . . . 2 . . 6 1 . . Authchips 1 | . . . . . . . . . . 1 . . . Time 436 | . . . . . . . 73 . . 317 46 . . Total Part Build Rating 53 | . . . . . . . 6 . . 38 9 . . Parts Repaired 5 | . . . 1 . . 1 1 . . 2 . . . Time 117 | . . . 26 . . 30 19 . . 42 . . . Parts Recycled . | . . . . . . . . . . . . . . Recycled Matter . | . . . . . . . . . . . . . . Retrieved Matter . | . . . . . . . . . . . . . . Retrieved Components . | . . . . . . . . . . . . . . Parts Scanalyzed 1 | . . . . . . 1 . . . . . . . Part Schematics Acquired 1 | . . . . . . 1 . . . . . . . Parts Damaged . | . . . . . . . . . . . . . . Bothacking | -11 -10 -10 -9 -8 -8 -7 -6 -5 -5 -4 -3 -2 -1 ------------ Run | Scr Mat Min Mat Mat Sto Fac Fac Fac DSF Fac Res Res Acc Used RIF Installer . | . . . . . . . . . . . . . . Robots Hacked . | . . . . . . . . . . . . . . Non-combat . | . . . . . . . . . . . . . . Combat . | . . . . . . . . . . . . . . Robot Hacks Applied . | . . . . . . . . . . . . . . Relay Couplers Released . | . . . . . . . . . . . . . . Fabnet Peak Effective % . | . . . . . . . . . . . . . . Robots Rewired 1 | . . . . . . . . . . 1 . . . Allies Hacked . | . . . . . . . . . . . . . . Hacks Repelled . | . . . . . . . . . . . . . . Allies | -11 -10 -10 -9 -8 -8 -7 -6 -5 -5 -4 -3 -2 -1 -------- Run | Scr Mat Min Mat Mat Sto Fac Fac Fac DSF Fac Res Res Acc Total Allies 9 | . . 2 . . 2 1 . . . 4 . . . Largest Group 2 | . . 2 2 . 2 1 . . . 2 . . . Highest-Rated Group 112 | . . 47 47 . 62 32 . . . 112 . . . Highest-Rated Ally 56 | . . 31 31 . 31 32 . . . 56 . . . Total Orders . | . . . . . . . . . . . . . . Ally Attacks 42 | . . . 10 . 10 8 . . . 14 . . . Total Damage 840 | . . . 82 . 190 250 . . . 318 . . . Kills 6 | . . . 2 . 1 2 . . . 1 . . . Allies Corrupted . | . . . . . . . . . . . . . . Allies Melted . | . . . . . . . . . . . . . . Intel | -11 -10 -10 -9 -8 -8 -7 -6 -5 -5 -4 -3 -2 -1 ------- Run | Scr Mat Min Mat Mat Sto Fac Fac Fac DSF Fac Res Res Acc Robot Analysis Total 3 | . 1 . 2 . . . . . . . . . . Derelict Logs Recovered . | . . . . . . . . . . . . . . Drone Launches . | . . . . . . . . . . . . . . Drone Recoveries . | . . . . . . . . . . . . . . Exploration | -11 -10 -10 -9 -8 -8 -7 -6 -5 -5 -4 -3 -2 -1 ------------- Run | Scr Mat Min Mat Mat Sto Fac Fac Fac DSF Fac Res Res Acc Turns Passed 6217 | 83 504 799 876 316 1191 514 285 4 36 724 709 41 135 Spaces Moved 6069 | 64 322 519 571 203 606 625 469 12 57 1186 1045 83 307 Core 1 | 1 . . . . . . . . . . . . . Treads 53 | . . . . . 53 . . . . . . . . Legs . | . . . . . . . . . . . . . . Wheels 2305 | 63 322 519 571 203 553 74 . . . . . . . Hover . | . . . . . . . . . . . . . . Flight 3710 | . . . . . . 551 469 12 57 1186 1045 83 307 Fastest Speed 23 | 50 90 145 105 115 105 26 26 26 26 23 23 28 28 Average Speed 65 | 89 113 145 116 115 124 43 26 26 26 28 28 28 28 Slowest Speed 240 | 100 145 155 155 115 240 176 101 26 26 103 30 28 98 Overloaded Moves . | . . . . . . . . . . . . . . Propulsion Burnouts . | . . . . . . . . . . . . . . Robots Hopped 28 | . . . . . . 7 1 . . 9 8 . 3 Cave-ins Triggered . | . . . . . . . . . . . . . . Exploration Rate (%) 33 | 4 40 87 36 16 81 23 17 1 72 38 35 3 14 Regions Visited 13 Branch Regions 2 Pre-discovered Areas . | . . . . . . . . . . . . . . Known Exits Taken 7 | . . . . . 1 1 1 1 . 1 1 1 . Unknown Exits Taken 5 | 1 1 1 1 1 . . . . . . . . . Scrap Searched 1 | . . 1 . . . . . . . . . . . Spaces Dug 51 | . . . . 1 14 6 2 . 1 6 16 1 4 Terrain Destroyed 208 | . . . 4 17 57 6 2 . 1 81 22 1 17 Melee 46 | . . . . 1 11 6 2 . 1 6 15 1 3 Projectile 2 | . . . . . . . . . . . 1 . 1 AOE 159 | . . . 4 16 46 . . . . 74 6 . 13 Terrain Rammed 1 | . . . . . . . . . . 1 . . . Walls Destroyed 1 | . . . . . . . . . . 1 . . . Machines Disabled . | . . . . . . . . . . . . . . Actions | -11 -10 -10 -9 -8 -8 -7 -6 -5 -5 -4 -3 -2 -1 --------- Run | Scr Mat Min Mat Mat Sto Fac Fac Fac DSF Fac Res Res Acc Total 7779 | 81 423 550 730 259 909 800 604 12 75 1523 1386 95 332 Wait 990 | 1 57 22 53 20 143 97 59 . . 255 274 3 6 Move 6001 | 63 321 518 570 202 605 610 466 11 56 1168 1029 82 300 Hop 26 | . . . . . . 7 1 . . 8 7 . 3 Pick Up 103 | 7 11 2 24 6 13 9 8 . 1 11 7 3 1 Fast Attach 60 | 6 2 . 7 2 14 6 3 . 2 12 5 . 1 Attach 47 | 1 2 . 2 3 4 8 3 1 . 7 7 3 6 Detach 30 | . 3 . 3 1 3 5 1 . 1 9 3 . 1 Swap 75 | . 3 2 7 5 22 10 5 . . 7 10 2 2 Drop 98 | . 3 . 29 6 22 8 8 . 1 14 7 . . Fire 171 | 3 21 6 35 13 60 26 . . . 2 2 . 3 Melee 122 | . . . . 1 19 14 14 . 1 27 35 2 9 Ram 1 | . . . . . . . . . . 1 . . . Kick . | . . . . . . . . . . . . . . Crush . | . . . . . . . . . . . . . . Escape Stasis 53 | . . . . . 4 . 36 . 13 . . . . Rewire 2 | . . . . . . . . . . 2 . . . Trap . | . . . . . . . . . . . . . . Miscellaneous . | . . . . . . . . . . . . . . Route ------- -11/Scrapyard -10/Materials (discovered 2 exits: *Mat / [*Min]) -10/Mines -9/Materials -8/Materials -8/Storage -7/Factory -6/Factory -5/Factory -5/DSF -4/Factory (discovered 5 exits: *Res x4 / [*Upp]) -3/Research (discovered 4 exits: *Res x3 / [*Qua]) -2/Research -1/Access To Epsilon Eridani History --------- Turn | Location | Event 16 | -11/Scrapyard | Discovered new exit (range 16) 84 | -11/Scrapyard | Entered Materials 300 | -10/Materials | Build established: Mutant 335 | -10/Materials | Discovered new exit (range 12) 543 | -10/Materials | Discovered new exit (range 10) 588 | -10/Materials | Entered Mines 801 | -10/Mines | Discovered new exit (range 8) 894 | -10/Mines | A weapon hastily lodged in a ceiling crevice suddenly fell to the ground 1387 | -10/Mines | Entered Materials 1387 | -9/Materials | Accompanied by 2 allies 1387 | -9/Materials | Evolved 2 slots: Propulsion x1, Utility x1 1392 | -9/Materials | Led the pair of lost Derelicts to an unsafe place 1429 | -9/Materials | Repaired Assault Rifle 1935 | -9/Materials | Discovered new exit (range 9) 2263 | -9/Materials | Entered another Materials area 2263 | -8/Materials | Evolved 2 slots: Propulsion x1, Utility x1 2350 | -8/Materials | Discovered new exit (range 14) 2492 | -8/Materials | Central database locked down 2579 | -8/Materials | Entered Storage 3150 | -8/Storage | Build established: Scavenger-Mutant 3545 | -8/Storage | Identified exit to Factory 3564 | -8/Storage | System corruption reached 10% 3659 | -8/Storage | Lost 6 parts (1p1n1u3w) 3712 | -8/Storage | Met a pair of Derelict thieves 3770 | -8/Storage | Entered Factory 3770 | -7/Factory | Evolved 2 slots: Utility x2 4196 | -7/Factory | Discovered new exit (range 5) 4199 | -7/Factory | Identified exit to Factory 4268 | -7/Factory | Repaired Imp. VTOL Module 4284 | -7/Factory | Entered another Factory area 4284 | -6/Factory | Evolved 2 slots: Utility x2 4310 | -6/Factory | Repaired Imp. Sensor Array 4413 | -6/Factory | Fabricated Imp. Propulsion Shielding (x2) 4504 | -6/Factory | Discovered new exit (range 13) 4548 | -6/Factory | Identified exit to Factory 4569 | -6/Factory | Entered another Factory area 4569 | -5/Factory | Evolved 2 slots: Utility x2 4573 | -5/Factory | Identified exit to DSF 4573 | -5/Factory | Entered DSF 4598 | -5/DSF | Additional patrols routed to DSF 4604 | -5/DSF | Discovered new exit (range 19) 4608 | -5/DSF | Identified exit to Factory 4609 | -5/DSF | Entered Factory 4609 | -4/Factory | Evolved 2 slots: Utility x2 4663 | -4/Factory | Repaired Cesium-ion Thruster 4705 | -4/Factory | Fabricated Lgt. Quantum Reactor (x2) 4726 | -4/Factory | Identified exit to Research 4857 | -4/Factory | Build established: Hacker-Scout 4861 | -4/Factory | Repaired Broken Chainsword 4970 | -4/Factory | Fabricated Imp. Propulsion Shielding (x2) 5031 | -4/Factory | Fabricated Adv. Surge Thruster (x2) 5041 | -4/Factory | Discovered new exit (range 18) 5333 | -4/Factory | Entered Research 5333 | -3/Research | Evolved 2 slots: Power x1, Propulsion x1 5419 | -3/Research | Fabricated Enh. Nova Cannon (x1) 5476 | -3/Research | Identified exit to Research 5927 | -3/Research | Discovered new exit (range 14) 5927 | -3/Research | Spotted B-90 Cyclops 5990 | -3/Research | Spotted B-86 Titan 6042 | -3/Research | Entered another Research area 6042 | -2/Research | Evolved 2 slots: Propulsion x1, Utility x1 6067 | -2/Research | Spotted B-90 Cyclops 6077 | -2/Research | Discovered new exit (range 5) 6080 | -2/Research | Identified exit to Access 6083 | -2/Research | Entered Access 6083 | -1/Access | Evolved 2 slots: Utility x2 6129 | -1/Access | Identified exit to Surface 6184 | -1/Access | Spotted B-99 Colossus 6209 | -1/Access | Energy Cycler disabled 6218 | *** | Escaped! Last Messages --------------- 06182_ Acquired Q-thruster. 06182_ Carbide Saw destroyed. 06185_ W-44 Eye distress signal jammed. 06191_ Destroyed Antigrav System. 06194_ W-44 Eye destroyed. 06194_ R-10 Processor collects Lgt. Antimatter Reactor. 06196_ Acquired 33 matter. 06197_ Acquired Adv. Sensor Array. 06198_ R-10 Processor collects Antigrav System. 06204_ Transmission Jammer destroyed. 06207_ Adv. Surge Thruster destroyed. 06209_ ALERT: Power surge detected, dispatching additional patrols. 06209_ Energy Cycler explodes. 06209_ Destroyed Xenon Bombardment Thruster. 06209_ S-43 Plague destroyed. 06209_ Destroyed Xenon Bombardment Thruster. 06209_ S-43 Plague destroyed. 06211_ Impulse Thruster destroyed. 06211_ K-01 Serf collects debris. 06216_ The Access Shell folds into the floor. Map ----- +----------------------------------------------------+ | ???????????????????? ?## ### # ### | | ???????????????????????# ??# # #?? | | ???????????????? ? ?? ## ### # #?? | | ????????????? ??? ?? # # #?? | | ?????????????"??"?????# # ### | | ??????????????????"???# + # | | ??????????????????? ?+ # # | | ?????????????"????"???# # # | | ?????????? ??""???? ??# # # | | ???????????????#?#????# ###### # # | | ????????#??????????# ??????# # [ " | | ?????????????#???#?# ?? ????# ############## | | ??????????????#????# ? ?????## ##??#???###??# | | ?????????????##?#??# ?? #?# #???#????##?## | | ??????????#????##??# BB ? BB???#k#?#???#?#????# | | ???????????????????# BB??? BB??##k#?#?##?#???### | | ????????????#??????# ?? ? ? ?## #??###?#??#### | | ????????????#????????"????""?"#?#g#????#?###??## | | ??????????????#????#""?????"???##g##?##????#?#?### | | ??????????#????###??"???"???????# ##???#?????##### | | ?????????????#?###?#""""""""""### #?#?#??#??### | | ??????????????????## ###g#?###??###?##=== | | ???????????#??#???## ### ###?#?#?#####== | | ??????????#????#?### ### #?##??##??###== | | ?????????#????????## "" ###g################ | | ????????????#?#????# "@ ###g## ## | | ??????????????#????# #?# ## ## | | ???????????#???#?#?# ### ## ## | | ?????????#?????#???# ### ## #? | | ???????????#??#??### ### ## ## | | ??????????????#???# ## + #? | | ??????????????????##"" ###### #? | | ???????????????#??##"" ###?#" ## | | ?????????#????????##"" #???#" RR[ ## | | ???????????????????#T #??##" %* #? | | ??????????????#???##"" #???#" [% #? | | ????????????#??????#"" ##?##" = #? | | ??????????????????##"" s######"""""""""##### | | ???????? s | | ??????? A u | | ???????? ########################+#############+ | | ???????????????????????#????###??????? ? ???? ? | | ???????????#??????#??????#?#???#?????????? ?#? ? | | ????????????????#???????#??????????? ?? ? ???? ?? | | ????? ?? ??????#???#??#????#????? ? ???? ??????? ? | | ??????????????????????#????#???#?? ?? ? ????????? | | ??????????????#?????????????##?????? ???""???????? | | ????????????????????????##??#???#???? ? """??????? | | ???????????????????#????????????#???? ?? T" #?? ? | | ??????????????????????????#????????? ???"""??#???? | +----------------------------------------------------+ Best States ------------- Heat Dissipation 52 Energy Generation 39 Energy Capacity 310 Matter Stores 347 Matter Capacity 500 Sight Range 22 Robot Scan Range 16 Terrain Scan Range 24 Terrain Scan Density 110 Jamming Range 12 Additional Mass Support 9 Armor Coverage 150 Core Shielding 20 Propulsion Shielding 66 Evasion (%) 72 Targeting Accuracy 8 Melee Accuracy 12 Recoil Reduction 3 Salvage Targeting 1 Offensive Hacking 44 Defensive Hacking 20 Authchip Count 2 Item Schematics ----------------- Lrg. Storage Unit | -9/Materials | Hacked Cesium-ion Thruster | -8/Materials | Hacked Imp. VTOL Module | -7/Factory | Scanalyzed Imp. Propulsion Shielding | -7/Factory | Hacked Adv. Surge Thruster | -4/Factory | Hacked Mic. Antimatter Reactor | -4/Factory | Hacked Robot Schematics ------------------ None Fabricated ------------ Imp. Propulsion Shielding | x2 | -6/Factory Lgt. Quantum Reactor | x2 | -4/Factory | Preloaded Imp. Propulsion Shielding | x2 | -4/Factory | Authchip Adv. Surge Thruster | x2 | -4/Factory Enh. Nova Cannon | x1 | -3/Research | Preloaded Alien Tech Used ----------------- None Achievements -------------- None Challenges ------------ None Game ------ Seed PulseFusionSource Manual? 0 Play Time 02:10:03 Cumulative 140.7 hours Start 2022.04.01 @ 22:23:30 End 2022.04.02 @ 00:48:49 Sessions 1 Manual Loads 0 Difficulty Rogue Special Mode None Game No. 119 Rogue 119 Adventurer 0 Explorer 0 Win Type 0 Total 14 Types 14/0/0/0/0/0/0/0/0 Lore% 66 Gallery% 70 Achievement% 59 Wizard Run 0 Options --------- ASCII 0 Keyboard 0 Movement Vi Keybinds 0 Fullscreen 2 Font 18/SmallcapsGlow Map View 76x50 Tactical HUD 1 Map Filters NONE Filters NONE Steam 0 RUN: 7b48c6e4-7823-48e0-b8fa-6e8ed667686c